[Event "*** Titled Tuesday Blitz"]
[Site "Chess.com"]
[Date "2020.05.19"]
[Round "4"]
[White "BernardoRoselli"]
[Black "agrigo3"]
[Result "1-0"]
[WhiteElo "2451"]
[BlackElo "2276"]
[TimeControl "180+1"]
[EndTime "12:40:24 PDT"]
[Termination "BernardoRoselli won on time"]

1. e4 {[%clk 0:03:00.9]} 1... d6 {[%clk 0:02:59.9]} 2. d4 {[%clk 0:02:59.9]}
2... Nf6 {[%clk 0:03:00.4]} 3. Nc3 {[%clk 0:02:59.4]} 3... g6 {[%clk 0:03:00.7]}
4. Nf3 {[%clk 0:02:59.5]} 4... Bg7 {[%clk 0:03:01.3]} 5. Be3 {[%clk 0:02:58]}
5... c6 {[%clk 0:02:59.6]} 6. a4 {[%clk 0:02:56.6]} 6... Nbd7 {[%clk 0:02:59.2]}
7. h3 {[%clk 0:02:56.8]} 7... e5 {[%clk 0:02:58.3]} 8. dxe5 {[%clk 0:02:55.2]}
8... dxe5 {[%clk 0:02:58.2]} 9. Bc4 {[%clk 0:02:54.9]} 9... Qe7 {[%clk
0:02:52.1]} 10. O-O {[%clk 0:02:51.4]} 10... O-O {[%clk 0:02:51.6]} 11. a5
{[%clk 0:02:51.5]} 11... Nh5 {[%clk 0:02:49.2]} 12. Qd2 {[%clk 0:02:36]} 12...
Nc5 {[%clk 0:02:44.7]} 13. Rfd1 {[%clk 0:02:32.2]} 13... Ne6 {[%clk 0:02:39.7]}
14. Qd6 {[%clk 0:02:32]} 14... Qxd6 {[%clk 0:02:34.4]} 15. Rxd6 {[%clk
0:02:31.3]} 15... Re8 {[%clk 0:02:34.3]} 16. Rad1 {[%clk 0:02:26.9]} 16... Bf8
{[%clk 0:02:34.2]} 17. R6d2 {[%clk 0:02:24.6]} 17... Bg7 {[%clk 0:02:18.4]} 18.
Ng5 {[%clk 0:02:22.8]} 18... Nxg5 {[%clk 0:02:05]} 19. Bxg5 {[%clk 0:02:21.8]}
19... Nf4 {[%clk 0:01:45.6]} 20. Rd8 {[%clk 0:02:12.6]} 20... Be6 {[%clk
0:01:41.1]} 21. Rxe8+ {[%clk 0:02:09.7]} 21... Rxe8 {[%clk 0:01:40.2]} 22. Bxe6
{[%clk 0:02:10.2]} 22... Nxe6 {[%clk 0:01:39.3]} 23. Be3 {[%clk 0:02:10.6]}
23... Nd4 {[%clk 0:01:35]} 24. Rd2 {[%clk 0:02:10.7]} 24... Kf8 {[%clk
0:01:17.6]} 25. Na4 {[%clk 0:02:08.3]} 25... Ke7 {[%clk 0:01:11.2]} 26. c3
{[%clk 0:02:00.1]} 26... Nb3 {[%clk 0:01:07.7]} 27. Rd1 {[%clk 0:02:00.1]} 27...
Ra8 {[%clk 0:00:59.5]} 28. Nc5 {[%clk 0:01:57]} 28... Nxc5 {[%clk 0:00:50.8]}
29. Bxc5+ {[%clk 0:01:56.6]} 29... Ke8 {[%clk 0:00:50.8]} 30. b4 {[%clk
0:01:55.7]} 30... Bf6 {[%clk 0:00:47.7]} 31. Kf1 {[%clk 0:01:49.6]} 31... Be7
{[%clk 0:00:47.8]} 32. Be3 {[%clk 0:01:49.1]} 32... f5 {[%clk 0:00:41.1]} 33. f3
{[%clk 0:01:48.3]} 33... a6 {[%clk 0:00:33.8]} 34. Bb6 {[%clk 0:01:46.8]} 34...
Bd8 {[%clk 0:00:31]} 35. exf5 {[%clk 0:01:45.1]} 35... Bxb6 {[%clk 0:00:27.9]}
36. axb6 {[%clk 0:01:44.2]} 36... gxf5 {[%clk 0:00:28.3]} 37. Re1 {[%clk
0:01:44.8]} 37... Kf7 {[%clk 0:00:25.2]} 38. Rxe5 {[%clk 0:01:44.6]} 38... Kf6
{[%clk 0:00:25.7]} 39. Re3 {[%clk 0:01:41.2]} 39... Rd8 {[%clk 0:00:20.5]} 40.
Ke2 {[%clk 0:01:41.1]} 40... Rd5 {[%clk 0:00:20]} 41. Rd3 {[%clk 0:01:37.7]}
41... Rb5 {[%clk 0:00:20]} 42. Rd7 {[%clk 0:01:37.7]} 42... Rxb6 {[%clk
0:00:19.9]} 43. Rxh7 {[%clk 0:01:37.6]} 43... Rb5 {[%clk 0:00:17.7]} 44. g4
{[%clk 0:01:34.8]} 44... b6 {[%clk 0:00:14.8]} 45. Rh6+ {[%clk 0:01:33.1]} 45...
Kg5 {[%clk 0:00:15.2]} 46. Rh5+ {[%clk 0:01:31]} 46... Kg6 {[%clk 0:00:13.5]}
47. Rxf5 {[%clk 0:01:30.6]} 47... Rxf5 {[%clk 0:00:13]} 48. gxf5+ {[%clk
0:01:30.7]} 48... Kxf5 {[%clk 0:00:13.3]} 49. h4 {[%clk 0:01:31]} 49... Kf4
{[%clk 0:00:12.6]} 50. Kd3 {[%clk 0:01:29.9]} 50... Kf5 {[%clk 0:00:06]} 51. c4
{[%clk 0:01:29.6]} 51... a5 {[%clk 0:00:04.4]} 52. bxa5 {[%clk 0:01:28.9]} 52...
bxa5 {[%clk 0:00:04.8]} 53. c5 {[%clk 0:01:29.3]} 53... Ke5 {[%clk 0:00:04]} 54.
Kc4 {[%clk 0:01:28.8]} 54... Kf5 {[%clk 0:00:03.2]} 55. Kb3 {[%clk 0:01:28.2]}
55... Kg6 {[%clk 0:00:02.5]} 56. f4 {[%clk 0:01:27.3]} 56... Kh5 {[%clk
0:00:03.2]} 57. f5 {[%clk 0:01:27.5]} 57... Kh6 {[%clk 0:00:02.1]} 58. Ka4
{[%clk 0:01:27]} 1-0

[Event "*** Titled Tuesday Blitz"]
[Site "Chess.com"]
[Date "2020.05.19"]
[Round "4"]
[White "ChadBiryani"]
[Black "Luibov_AN"]
[Result "0-1"]
[WhiteElo "2292"]
[BlackElo "2078"]
[TimeControl "180+1"]
[EndTime "12:40:25 PDT"]
[Termination "Luibov_AN won on time"]

1. b3 {[%clk 0:02:57.8]} 1... Nf6 {[%clk 0:02:48.8]} 2. Bb2 {[%clk 0:02:58.1]}
2... c5 {[%clk 0:02:48]} 3. c4 {[%clk 0:02:54.9]} 3... Nc6 {[%clk 0:02:44.7]} 4.
Nf3 {[%clk 0:02:51.9]} 4... g6 {[%clk 0:02:44.4]} 5. d4 {[%clk 0:02:48.1]} 5...
cxd4 {[%clk 0:02:41.5]} 6. Nxd4 {[%clk 0:02:49]} 6... Bg7 {[%clk 0:02:41.3]} 7.
e3 {[%clk 0:02:48.7]} 7... O-O {[%clk 0:02:40.6]} 8. Nd2 {[%clk 0:02:44.4]} 8...
d6 {[%clk 0:02:37.2]} 9. Be2 {[%clk 0:02:28.3]} 9... a6 {[%clk 0:02:19.9]} 10.
O-O {[%clk 0:02:20.5]} 10... e5 {[%clk 0:02:19]} 11. Nxc6 {[%clk 0:02:17.5]}
11... bxc6 {[%clk 0:02:17.9]} 12. Bf3 {[%clk 0:02:17.5]} 12... Bb7 {[%clk
0:02:08.3]} 13. Qe2 {[%clk 0:02:13.1]} 13... Qe7 {[%clk 0:02:03.5]} 14. Rad1
{[%clk 0:02:02.5]} 14... Rfe8 {[%clk 0:01:54.9]} 15. g3 {[%clk 0:01:46.7]} 15...
d5 {[%clk 0:01:48]} 16. Bg2 {[%clk 0:01:45.3]} 16... Rad8 {[%clk 0:01:43.8]} 17.
Nb1 {[%clk 0:01:39.7]} 17... h6 {[%clk 0:01:30.2]} 18. Qc2 {[%clk 0:01:19.1]}
18... e4 {[%clk 0:01:16.1]} 19. Ba3 {[%clk 0:01:14.7]} 19... Qe5 {[%clk
0:01:11.4]} 20. Nc3 {[%clk 0:01:11.4]} 20... Qh5 {[%clk 0:01:03.5]} 21. Na4
{[%clk 0:01:07.7]} 21... Ng4 {[%clk 0:00:56.4]} 22. h3 {[%clk 0:01:07.9]} 22...
Ne5 {[%clk 0:00:56.1]} 23. Kh2 {[%clk 0:00:47]} 23... Bc8 {[%clk 0:00:49.3]} 24.
Rh1 {[%clk 0:00:40.9]} 24... Nf3+ {[%clk 0:00:46.8]} 25. Bxf3 {[%clk 0:00:40.3]}
25... exf3 {[%clk 0:00:43.9]} 26. Kg1 {[%clk 0:00:31.6]} 26... Bxh3 {[%clk
0:00:43.3]} 27. cxd5 {[%clk 0:00:30.1]} 27... cxd5 {[%clk 0:00:40.2]} 28. Nc5
{[%clk 0:00:14]} 28... Qg4 {[%clk 0:00:37.3]} 29. Nd3 {[%clk 0:00:10.6]} 29...
Bg2 {[%clk 0:00:30.1]} 30. Rh4 {[%clk 0:00:09.5]} 30... Qf5 {[%clk 0:00:29.9]}
31. Qd2 {[%clk 0:00:07.4]} 31... g5 {[%clk 0:00:29.5]} 32. Rh2 {[%clk
0:00:06.6]} 32... d4 {[%clk 0:00:27.4]} 33. exd4 {[%clk 0:00:03.1]} 33... Rxd4
{[%clk 0:00:27.2]} 34. Qc2 {[%clk 0:00:02.9]} 34... Red8 {[%clk 0:00:26.6]} 35.
Rf1 {[%clk 0:00:01.1]} 35... Rxd3 {[%clk 0:00:26.3]} 0-1

[Event "*** Titled Tuesday Blitz"]
[Site "Chess.com"]
[Date "2020.05.19"]
[Round "4"]
[White "jucAxx"]
[Black "Berant"]
[Result "1-0"]
[WhiteElo "2091"]
[BlackElo "2280"]
[TimeControl "180+1"]
[EndTime "12:40:26 PDT"]
[Termination "jucAxx won by resignation"]

1. e4 {[%clk 0:02:25.6]} 1... c5 {[%clk 0:02:58.1]} 2. c3 {[%clk 0:02:25.7]}
2... Nf6 {[%clk 0:02:55.6]} 3. e5 {[%clk 0:02:25.9]} 3... Nd5 {[%clk 0:02:54.9]}
4. d4 {[%clk 0:02:26.6]} 4... cxd4 {[%clk 0:02:55]} 5. Nf3 {[%clk 0:02:27.1]}
5... d6 {[%clk 0:02:54.6]} 6. cxd4 {[%clk 0:02:27.3]} 6... Nc6 {[%clk
0:02:54.3]} 7. Bc4 {[%clk 0:02:27.4]} 7... dxe5 {[%clk 0:02:54.1]} 8. dxe5
{[%clk 0:02:27]} 8... Nb6 {[%clk 0:02:54.5]} 9. Qxd8+ {[%clk 0:02:24.6]} 9...
Nxd8 {[%clk 0:02:52.2]} 10. Bb3 {[%clk 0:02:23.6]} 10... Be6 {[%clk 0:02:51.4]}
11. Nbd2 {[%clk 0:02:21.8]} 11... Bxb3 {[%clk 0:02:50.2]} 12. Nxb3 {[%clk
0:02:22.7]} 12... e6 {[%clk 0:02:50]} 13. Be3 {[%clk 0:02:22.5]} 13... Bb4+
{[%clk 0:02:49.4]} 14. Ke2 {[%clk 0:02:22]} 14... Nc6 {[%clk 0:02:49.3]} 15. a3
{[%clk 0:02:21.6]} 15... Be7 {[%clk 0:02:48.5]} 16. Rac1 {[%clk 0:02:18.7]}
16... O-O {[%clk 0:02:47.3]} 17. Nbd4 {[%clk 0:02:18.8]} 17... Nxd4+ {[%clk
0:02:46]} 18. Nxd4 {[%clk 0:02:19.7]} 18... Rac8 {[%clk 0:02:45.4]} 19. Nb5
{[%clk 0:02:16]} 19... a6 {[%clk 0:02:42.2]} 20. Bxb6 {[%clk 0:02:10.9]} 20...
axb5 {[%clk 0:02:41.7]} 21. Rhd1 {[%clk 0:02:08.1]} 21... Bg5 {[%clk 0:02:37.4]}
22. Rxc8 {[%clk 0:02:07.5]} 22... Rxc8 {[%clk 0:02:38.1]} 23. Be3 {[%clk
0:02:06]} 23... Bxe3 {[%clk 0:02:36]} 24. Kxe3 {[%clk 0:02:05.8]} 24... g6
{[%clk 0:02:35.8]} 25. Rd7 {[%clk 0:01:47.6]} 25... Rc2 {[%clk 0:02:35.3]} 26.
b4 {[%clk 0:01:47.7]} 26... Rc3+ {[%clk 0:02:35]} 27. Ke2 {[%clk 0:01:42.9]}
27... b6 {[%clk 0:02:23]} 28. Rd6 {[%clk 0:01:40.5]} 28... Rxa3 {[%clk
0:02:20.2]} 29. Rxb6 {[%clk 0:01:40.6]} 29... Ra2+ {[%clk 0:02:20.1]} 30. Ke3
{[%clk 0:01:40.1]} 30... Ra3+ {[%clk 0:02:20]} 31. Kf4 {[%clk 0:01:39.1]} 31...
Ra2 {[%clk 0:02:19.5]} 32. Kg3 {[%clk 0:01:38.3]} 32... Re2 {[%clk 0:02:17.2]}
33. f3 {[%clk 0:01:38.3]} 33... Rxe5 {[%clk 0:02:16.8]} 34. Kf4 {[%clk
0:01:35.9]} 34... Rd5 {[%clk 0:02:17]} 35. Ke4 {[%clk 0:01:33.4]} 35... Kg7
{[%clk 0:02:17.3]} 36. g4 {[%clk 0:01:31.8]} 36... h5 {[%clk 0:02:15.4]} 37. h3
{[%clk 0:01:30.5]} 37... h4 {[%clk 0:02:14.7]} 38. Rb7 {[%clk 0:01:28.9]} 38...
Kf6 {[%clk 0:02:12.1]} 39. f4 {[%clk 0:01:27.9]} 39... g5 {[%clk 0:02:09.6]} 40.
fxg5+ {[%clk 0:01:26.5]} 40... Rxg5 {[%clk 0:02:08.8]} 41. Kf4 {[%clk
0:01:24.9]} 41... Rd5 {[%clk 0:02:07.4]} 42. Ke4 {[%clk 0:01:25.1]} 42... Re5+
{[%clk 0:02:07.3]} 43. Kf4 {[%clk 0:01:25]} 43... Rd5 {[%clk 0:02:05.5]} 44. Ke4
{[%clk 0:01:25.4]} 44... Kg6 {[%clk 0:02:00.3]} 45. Rb8 {[%clk 0:01:23.5]} 45...
f5+ {[%clk 0:01:49.9]} 46. gxf5+ {[%clk 0:01:22.3]} 46... Rxf5 {[%clk
0:01:50.5]} 47. Rg8+ {[%clk 0:01:17]} 47... Kf6 {[%clk 0:01:48.9]} 48. Rh8
{[%clk 0:01:17.1]} 48... Re5+ {[%clk 0:01:47.4]} 49. Kd4 {[%clk 0:01:15.3]}
49... Rd5+ {[%clk 0:01:46.7]} 50. Ke4 {[%clk 0:01:15.5]} 50... Rd1 {[%clk
0:01:21.4]} 51. Rxh4 {[%clk 0:01:08.1]} 51... Rb1 {[%clk 0:01:20.4]} 52. Ke3
{[%clk 0:01:03.3]} 52... Rb3+ {[%clk 0:01:19.8]} 53. Kd2 {[%clk 0:01:03.3]}
53... Kg5 {[%clk 0:01:17.8]} 54. Re4 {[%clk 0:01:02.2]} 54... Kf5 {[%clk
0:01:15.7]} 55. Rh4 {[%clk 0:01:01.9]} 55... e5 {[%clk 0:01:15.7]} 56. Kc2
{[%clk 0:01:01.3]} 56... Rg3 {[%clk 0:01:12.4]} 57. Rh8 {[%clk 0:00:59.6]} 57...
Ke4 {[%clk 0:01:12.3]} 58. h4 {[%clk 0:00:59.5]} 58... Kd4 {[%clk 0:01:11.2]}
59. h5 {[%clk 0:00:59.6]} 59... Rg2+ {[%clk 0:01:11.4]} 60. Kb3 {[%clk
0:00:59.3]} 60... Rg3+ {[%clk 0:01:11.3]} 61. Kb2 {[%clk 0:00:59.5]} 61... Kc4
{[%clk 0:01:11]} 62. Re8 {[%clk 0:00:54]} 62... Rg2+ {[%clk 0:01:11]} 63. Kc1
{[%clk 0:00:53.6]} 63... Rg5 {[%clk 0:01:09.3]} 64. h6 {[%clk 0:00:53.4]} 64...
Kxb4 {[%clk 0:01:09.4]} 65. h7 {[%clk 0:00:52.1]} 65... Kc3 {[%clk 0:01:06.7]}
66. Rc8+ {[%clk 0:00:50.1]} 66... Kb3 {[%clk 0:01:05.5]} 67. h8=Q {[%clk
0:00:50]} 67... Rg1+ {[%clk 0:01:03.3]} 68. Kd2 {[%clk 0:00:50.1]} 68... Rg2+
{[%clk 0:01:02.2]} 69. Ke3 {[%clk 0:00:50.4]} 1-0

[Event "*** Titled Tuesday Blitz"]
[Site "Chess.com"]
[Date "2020.05.19"]
[Round "4"]
[White "AleksibFan"]
[Black "Emolas-2020"]
[Result "0-1"]
[WhiteElo "2478"]
[BlackElo "2421"]
[TimeControl "180+1"]
[EndTime "12:40:27 PDT"]
[Termination "Emolas-2020 won on time"]

1. d4 {[%clk 0:03:00.9]} 1... Nf6 {[%clk 0:02:57.9]} 2. Bg5 {[%clk 0:02:59.4]}
2... e6 {[%clk 0:02:57.3]} 3. Nf3 {[%clk 0:02:58.7]} 3... h6 {[%clk 0:02:55]} 4.
Bf4 {[%clk 0:02:58.1]} 4... c5 {[%clk 0:02:53.2]} 5. e3 {[%clk 0:02:58]} 5...
Nd5 {[%clk 0:02:48.3]} 6. Bg3 {[%clk 0:02:56.6]} 6... cxd4 {[%clk 0:02:42.7]} 7.
exd4 {[%clk 0:02:55.4]} 7... b5 {[%clk 0:02:42.5]} 8. c3 {[%clk 0:02:43.8]} 8...
a6 {[%clk 0:02:38.6]} 9. Nbd2 {[%clk 0:02:37.5]} 9... Nc6 {[%clk 0:02:32.4]} 10.
a4 {[%clk 0:02:34.2]} 10... b4 {[%clk 0:02:15.9]} 11. c4 {[%clk 0:02:31.7]}
11... Nf6 {[%clk 0:02:15.4]} 12. d5 {[%clk 0:02:04]} 12... exd5 {[%clk
0:01:45.1]} 13. cxd5 {[%clk 0:02:04.9]} 13... Nxd5 {[%clk 0:01:44.1]} 14. Ne4
{[%clk 0:01:46.9]} 14... Nc7 {[%clk 0:01:15.3]} 15. Bc4 {[%clk 0:00:45.6]} 15...
Ne6 {[%clk 0:01:14]} 16. O-O {[%clk 0:00:33.3]} 16... Be7 {[%clk 0:01:11.4]} 17.
Nd6+ {[%clk 0:00:28.3]} 17... Kf8 {[%clk 0:01:07.5]} 18. Re1 {[%clk 0:00:19.3]}
18... a5 {[%clk 0:01:06.6]} 19. Nf5 {[%clk 0:00:14.5]} 19... Ba6 {[%clk
0:00:58.9]} 20. Bd5 {[%clk 0:00:12.5]} 20... Rc8 {[%clk 0:00:52.4]} 21. Nxe7
{[%clk 0:00:07.3]} 21... Nxe7 {[%clk 0:00:45.1]} 22. Bd6 {[%clk 0:00:06.6]}
22... Kg8 {[%clk 0:00:42.6]} 23. Ne5 {[%clk 0:00:04.1]} 23... Nxd5 {[%clk
0:00:40.5]} 24. Qxd5 {[%clk 0:00:05]} 24... Qg5 {[%clk 0:00:35.4]} 25. Rad1
{[%clk 0:00:03.2]} 25... Kh7 {[%clk 0:00:18.2]} 26. g3 {[%clk 0:00:02.7]} 26...
Rhe8 {[%clk 0:00:16]} 27. Qe4+ {[%clk 0:00:01.2]} 27... f5 {[%clk 0:00:13.9]}
0-1

[Event "*** Titled Tuesday Blitz"]
[Site "Chess.com"]
[Date "2020.05.19"]
[Round "4"]
[White "kuli4ik"]
[Black "FMVolodymyrSakun"]
[Result "1-0"]
[WhiteElo "2790"]
[BlackElo "2486"]
[TimeControl "180+1"]
[EndTime "12:40:30 PDT"]
[Termination "kuli4ik won by resignation"]

1. Nf3 {[%clk 0:03:00.9]} 1... Nf6 {[%clk 0:02:59.6]} 2. g3 {[%clk 0:03:01.2]}
2... g6 {[%clk 0:02:59.9]} 3. b3 {[%clk 0:03:01.1]} 3... Bg7 {[%clk 0:03:00.2]}
4. Bb2 {[%clk 0:03:01.5]} 4... O-O {[%clk 0:03:00.7]} 5. Bg2 {[%clk 0:03:01.9]}
5... d6 {[%clk 0:03:01.1]} 6. d4 {[%clk 0:03:02]} 6... Nc6 {[%clk 0:03:01.3]} 7.
O-O {[%clk 0:03:01.4]} 7... e5 {[%clk 0:03:01.3]} 8. dxe5 {[%clk 0:03:01.2]}
8... Ng4 {[%clk 0:03:01.2]} 9. Qd2 {[%clk 0:02:58.6]} 9... dxe5 {[%clk
0:02:56.6]} 10. Rd1 {[%clk 0:02:52.4]} 10... Bf5 {[%clk 0:02:51.5]} 11. h3
{[%clk 0:02:48.9]} 11... Nh6 {[%clk 0:02:28.7]} 12. g4 {[%clk 0:02:29.9]} 12...
Qxd2 {[%clk 0:02:06]} 13. Nbxd2 {[%clk 0:02:19.6]} 13... Bc8 {[%clk 0:01:40.5]}
14. Nc4 {[%clk 0:02:17.8]} 14... e4 {[%clk 0:01:31.2]} 15. Bxg7 {[%clk 0:02:11]}
15... Kxg7 {[%clk 0:01:28.7]} 16. Nd4 {[%clk 0:01:54]} 16... Nxd4 {[%clk
0:01:26.3]} 17. Rxd4 {[%clk 0:01:53.8]} 17... f5 {[%clk 0:01:26.5]} 18. gxf5
{[%clk 0:01:53.8]} 18... gxf5 {[%clk 0:01:26]} 19. f3 {[%clk 0:01:52.9]} 19...
exf3 {[%clk 0:01:21.9]} 20. Bxf3 {[%clk 0:01:52.8]} 20... Nf7 {[%clk 0:01:19.7]}
21. Kf2 {[%clk 0:01:47.8]} 21... Kf6 {[%clk 0:01:19.1]} 22. Rh4 {[%clk
0:01:41.3]} 22... Rh8 {[%clk 0:01:09]} 23. Bd5 {[%clk 0:01:31]} 23... Ne5 {[%clk
0:00:55.7]} 24. Rg1 {[%clk 0:01:18.1]} 24... Ng6 {[%clk 0:00:45.7]} 25. Rh6
{[%clk 0:01:02.7]} 25... Kg7 {[%clk 0:00:44.4]} 26. Rh5 {[%clk 0:01:02]} 26...
Rd8 {[%clk 0:00:36.9]} 27. Bf3 {[%clk 0:00:57.6]} 27... Rf8 {[%clk 0:00:26.4]}
28. Rhg5 {[%clk 0:00:52.5]} 28... Kf6 {[%clk 0:00:24.3]} 29. Rh5 {[%clk
0:00:46.9]} 29... Kg7 {[%clk 0:00:24.3]} 30. Ne5 {[%clk 0:00:39.1]} 30... Re8
{[%clk 0:00:24.3]} 31. Nxg6 {[%clk 0:00:36.5]} 31... hxg6 {[%clk 0:00:24.1]} 32.
Rhg5 {[%clk 0:00:37]} 32... Re6 {[%clk 0:00:23.9]} 33. h4 {[%clk 0:00:30.1]}
33... Kf7 {[%clk 0:00:14.1]} 34. h5 {[%clk 0:00:30.2]} 34... gxh5 {[%clk
0:00:14.1]} 35. Rxf5+ {[%clk 0:00:30.5]} 35... Ke7 {[%clk 0:00:13.2]} 36. Rg7+
{[%clk 0:00:25.4]} 36... Ke8 {[%clk 0:00:08.3]} 37. Bxh5+ {[%clk 0:00:23.3]} 1-0

[Event "*** Titled Tuesday Blitz"]
[Site "Chess.com"]
[Date "2020.05.19"]
[Round "4"]
[White "aNaartjieZA"]
[Black "Bacyanide"]
[Result "0-1"]
[WhiteElo "2575"]
[BlackElo "2434"]
[TimeControl "180+1"]
[EndTime "12:40:31 PDT"]
[Termination "Bacyanide won by resignation"]

1. e4 {[%clk 0:03:00.9]} 1... c6 {[%clk 0:02:58.7]} 2. d3 {[%clk 0:03:00.6]}
2... d5 {[%clk 0:02:59.6]} 3. Nd2 {[%clk 0:03:01.1]} 3... g6 {[%clk 0:02:54.7]}
4. Ngf3 {[%clk 0:03:01.1]} 4... Bg7 {[%clk 0:02:54.9]} 5. g3 {[%clk 0:03:01.4]}
5... e6 {[%clk 0:02:55.1]} 6. Bg2 {[%clk 0:03:01.7]} 6... Ne7 {[%clk 0:02:55.4]}
7. O-O {[%clk 0:03:01.9]} 7... O-O {[%clk 0:02:54.5]} 8. Re1 {[%clk 0:03:00.4]}
8... c5 {[%clk 0:02:53.8]} 9. e5 {[%clk 0:02:57.7]} 9... Nbc6 {[%clk 0:02:53.4]}
10. Nf1 {[%clk 0:02:57.4]} 10... b5 {[%clk 0:02:52.6]} 11. h4 {[%clk 0:02:57.1]}
11... Nd4 {[%clk 0:02:37.6]} 12. N1h2 {[%clk 0:02:51.3]} 12... Nec6 {[%clk
0:02:33.5]} 13. Bf4 {[%clk 0:02:41.4]} 13... Nxf3+ {[%clk 0:02:31.2]} 14. Nxf3
{[%clk 0:02:41]} 14... a5 {[%clk 0:02:28.3]} 15. h5 {[%clk 0:02:30.1]} 15... b4
{[%clk 0:02:27.5]} 16. Qd2 {[%clk 0:02:20.2]} 16... Ba6 {[%clk 0:02:06.8]} 17.
Bg5 {[%clk 0:02:17.8]} 17... Qc7 {[%clk 0:02:05.7]} 18. Bf6 {[%clk 0:02:17.4]}
18... h6 {[%clk 0:01:16.3]} 19. Bxg7 {[%clk 0:01:17.7]} 19... Kxg7 {[%clk
0:01:15.2]} 20. Qf4 {[%clk 0:01:17.3]} 20... Qe7 {[%clk 0:01:08.2]} 21. Qg4
{[%clk 0:00:35.4]} 21... g5 {[%clk 0:01:04.8]} 22. a3 {[%clk 0:00:28.8]} 22...
b3 {[%clk 0:00:51.8]} 23. c4 {[%clk 0:00:23.4]} 23... dxc4 {[%clk 0:00:45.3]}
24. dxc4 {[%clk 0:00:21.1]} 24... Rad8 {[%clk 0:00:45.3]} 25. Nxg5 {[%clk
0:00:19.5]} 25... Qxg5 {[%clk 0:00:45.4]} 26. Qxg5+ {[%clk 0:00:19.6]} 26...
hxg5 {[%clk 0:00:46.3]} 27. Bxc6 {[%clk 0:00:20.1]} 27... Rd2 {[%clk 0:00:43.3]}
28. Rab1 {[%clk 0:00:20.1]} 28... Bxc4 {[%clk 0:00:42.8]} 29. Rbc1 {[%clk
0:00:20.3]} 29... Bd3 {[%clk 0:00:20.7]} 30. Be4 {[%clk 0:00:19.3]} 30... Bxe4
{[%clk 0:00:20.4]} 31. Rxe4 {[%clk 0:00:18.4]} 31... Rxb2 {[%clk 0:00:21.3]} 32.
Rxc5 {[%clk 0:00:18.6]} 32... Rd2 {[%clk 0:00:19.3]} 33. Rb5 {[%clk 0:00:18.1]}
33... b2 {[%clk 0:00:19]} 34. Re1 {[%clk 0:00:18.1]} 34... Rc8 {[%clk
0:00:18.3]} 35. Kf1 {[%clk 0:00:16.1]} 35... Rc1 {[%clk 0:00:18.1]} 36. a4
{[%clk 0:00:15.5]} 36... Rdc2 {[%clk 0:00:18.1]} 37. Rxb2 {[%clk 0:00:14.7]}
37... Rxe1+ {[%clk 0:00:17.6]} 0-1

[Event "*** Titled Tuesday Blitz"]
[Site "Chess.com"]
[Date "2020.05.19"]
[Round "4"]
[White "dragos420"]
[Black "Volodar_Murzin"]
[Result "0-1"]
[WhiteElo "2503"]
[BlackElo "2748"]
[TimeControl "180+1"]
[EndTime "12:40:33 PDT"]
[Termination "Volodar_Murzin won on time"]

1. e4 {[%clk 0:03:00.9]} 1... c6 {[%clk 0:02:59.3]} 2. Nc3 {[%clk 0:02:56.5]}
2... d5 {[%clk 0:03:00.2]} 3. Qf3 {[%clk 0:02:57.1]} 3... d4 {[%clk 0:02:35.9]}
4. Bc4 {[%clk 0:02:52.7]} 4... e6 {[%clk 0:02:35.9]} 5. Nce2 {[%clk 0:02:46.5]}
5... c5 {[%clk 0:02:35.6]} 6. d3 {[%clk 0:02:45.2]} 6... Nc6 {[%clk 0:02:35.4]}
7. Qg3 {[%clk 0:02:44.3]} 7... a6 {[%clk 0:02:32.9]} 8. a4 {[%clk 0:02:43.1]}
8... Bd7 {[%clk 0:02:32.8]} 9. f4 {[%clk 0:02:34.3]} 9... b5 {[%clk 0:02:32]}
10. Bb3 {[%clk 0:02:13.9]} 10... Nge7 {[%clk 0:02:20.1]} 11. Nf3 {[%clk
0:02:07.4]} 11... Na5 {[%clk 0:01:42.1]} 12. Ba2 {[%clk 0:01:50.5]} 12... b4
{[%clk 0:01:39.6]} 13. O-O {[%clk 0:01:43]} 13... b3 {[%clk 0:00:44.1]} 14. Bxb3
{[%clk 0:01:28.9]} 14... Nxb3 {[%clk 0:00:43.8]} 15. cxb3 {[%clk 0:01:29.8]}
15... Nc6 {[%clk 0:00:38.5]} 16. Ne5 {[%clk 0:01:20.7]} 16... f6 {[%clk
0:00:31.4]} 17. Nc4 {[%clk 0:01:11.1]} 17... Rb8 {[%clk 0:00:28]} 18. e5 {[%clk
0:00:58.8]} 18... Qc7 {[%clk 0:00:11.3]} 19. exf6 {[%clk 0:00:25.9]} 19... gxf6
{[%clk 0:00:10.9]} 20. f5 {[%clk 0:00:20.7]} 20... Qxg3 {[%clk 0:00:09.9]} 21.
Nxg3 {[%clk 0:00:21.6]} 21... e5 {[%clk 0:00:10.1]} 22. Ne4 {[%clk 0:00:21.4]}
22... Be7 {[%clk 0:00:10.7]} 23. Ncd2 {[%clk 0:00:15.2]} 23... Rg8 {[%clk
0:00:07.2]} 24. h3 {[%clk 0:00:14]} 24... Nb4 {[%clk 0:00:06.5]} 25. Rf3 {[%clk
0:00:11.8]} 25... Nc2 {[%clk 0:00:07]} 26. Rb1 {[%clk 0:00:10.4]} 26... Ne1
{[%clk 0:00:07.2]} 27. Rf1 {[%clk 0:00:07.3]} 27... Nxd3 {[%clk 0:00:07.2]} 28.
Nc4 {[%clk 0:00:08.1]} 28... Rxb3 {[%clk 0:00:06.5]} 29. Bd2 {[%clk 0:00:05.4]}
29... Bc6 {[%clk 0:00:03.7]} 0-1